bitfinex/quotes_ETHUSD_20230116
["timestamp","ask_amount","ask_price","bid_price","bid_amount"]
[1673907206837,1.09002242,1583.0,1582.9,9.38351]
[1673907207250,2.50865256,1583.0,1582.9,9.38351]
[1673907207700,1.09002242,1583.0,1582.9,9.38351]
[1673907208185,1.09002242,1583.0,1582.9,23.588656]
[1673907208186,0.14479965,1583.0,1582.9,23.588656]
[1673907211994,0.18901568,1583.1,1583.0,0.144]
[1673907212350,0.18901568,1583.1,1583.0,27.44195407]
[1673907212504,0.18901568,1583.1,1583.0,27.50795407]
[1673907212871,0.18634732,1583.1,1583.0,27.50795407]
[1673907213087,0.18634732,1583.1,1583.0,31.16761308]
[1673907213237,0.18834732,1583.1,1583.0,31.16561308]
[1673907213449,0.18634732,1583.1,1583.0,31.16761308]
[1673907219059,0.00034732,1583.1,1583.0,31.16761308]
[1673907220144,0.00034732,1583.1,1583.0,34.16110818]
[1673907220566,0.00034732,1583.1,1583.0,32.59361308]
[1673907220882,0.00034732,1583.1,1583.0,32.91435566]
[1673907221670,0.00034732,1583.1,1583.0,34.48184412]
[1673907221989,0.00034732,1583.1,1583.0,32.91435566]
[1673907222452,0.00034732,1583.1,1583.0,31.48835566]
[1673907224528,0.72185,1583.2,1583.0,31.48835566]
[1673907224738,0.72185,1583.2,1583.1,12.81217964]
[1673907225009,0.72185,1583.2,1583.1,24.19489964]
[1673907227475,0.67185,1583.2,1583.1,24.19489964]
[1673907229388,0.67385,1583.2,1583.1,23.96289964]
[1673907229941,0.67185,1583.2,1583.1,20.81606407]
[1673907230304,0.00075,1583.2,1583.1,20.81317081]
[1673907231987,0.15714944,1583.3,1583.2,2.00125]
[1673907232200,0.15714944,1583.3,1583.2,5.00125]
[1673907232515,0.15714944,1583.3,1583.2,17.69989]
[1673907233518,0.15714944,1583.3,1583.2,20.301551]
[1673907233876,0.15714944,1583.3,1583.2,26.617871]
[1673907234251,0.15714944,1583.3,1583.2,26.616621]
[1673907236295,0.15714944,1583.3,1583.2,29.73324507]
[1673907236505,0.15714944,1583.3,1583.2,29.96324507]
[1673907240339,0.00014944,1583.3,1583.2,29.96324507]
[1673907241498,12.6690933,1583.5,1583.3,2.0]
[1673907241665,12.6690933,1583.5,1583.4,18.94656]
[1673907241883,12.6690933,1583.5,1583.4,19.01256]
[1673907242213,12.6190933,1583.5,1583.4,22.01256]
[1673907242620,9.83723692,1583.6,1583.5,3.435]
[1673907242809,9.83723692,1583.6,1583.5,15.553]
[1673907242810,0.22783692,1583.6,1583.5,15.553]
[1673907243025,0.22783692,1583.6,1583.5,37.82827526]
[1673907243026,0.16183692,1583.6,1583.5,37.82827526]
[1673907243257,0.16183692,1583.6,1583.5,18.19624]
[1673907243484,0.63573692,1583.6,1583.5,15.69624]
[1673907243672,0.63573692,1583.6,1583.5,9.38112]
[1673907243886,0.16183692,1583.6,1583.5,9.38112]
[1673907244281,0.16183692,1583.6,1583.5,15.69624]
[1673907244496,0.16183692,1583.6,1583.5,17.897416]
[1673907245283,0.16183692,1583.6,1583.5,15.69624]
[1673907250394,0.16183692,1583.6,1583.5,22.01136]
[1673907250750,0.16183692,1583.6,1583.5,15.69624]
[1673907251118,0.00083692,1583.6,1583.5,18.81286407]
[1673907251363,0.00083692,1583.6,1583.5,28.92910174]
[1673907251579,0.00083692,1583.6,1583.5,31.12400569]
[1673907252003,1e-08,1583.7,1583.5,31.12400569]
[1673907252163,1e-08,1583.7,1583.6,28.48278407]
[1673907252492,1e-08,1583.7,1583.6,29.34884158]
[1673907255043,0.00089975,1583.8,1583.6,29.34884158]
[1673907255256,0.00089975,1583.8,1583.7,6.28150823]
[1673907255446,0.00089975,1583.8,1583.7,29.72446823]
[1673907255672,0.00089975,1583.8,1583.7,30.29452574]
[1673907265121,0.00089975,1583.8,1583.7,25.51390167]
[1673907265311,0.00089975,1583.8,1583.7,22.57901751]
[1673907265534,0.47479975,1583.8,1583.7,22.57901751]
[1673907266392,0.47479975,1583.8,1583.7,9.95037751]
[1673907266612,0.47479975,1583.8,1583.7,9.38032]
[1673907266987,0.63319198,1583.8,1583.7,3.066]
[1673907267317,0.63319198,1583.8,1583.6,0.066]
[1673907267677,2.99941475,1583.8,1583.5,0.066]
[1673907267869,13.39639975,1583.8,1583.5,6.31479]
[1673907268195,13.46239975,1583.8,1583.5,12.69591]
[1673907268413,12.96239975,1583.8,1583.5,12.69591]
[1673907268621,13.43629975,1583.8,1583.5,12.69591]
[1673907268991,13.43629975,1583.8,1583.6,3.0]
[1673907269238,13.43629975,1583.8,1583.6,9.88449751]
[1673907269406,13.43629975,1583.8,1583.6,9.95049751]
[1673907270262,13.43629975,1583.8,1583.6,3.63605751]
[1673907270505,13.43629975,1583.8,1583.6,3.57005751]
[1673907270769,15.69637499,1583.8,1583.6,3.57005751]
[1673907270992,15.69637499,1583.8,1583.6,0.57005751]
[1673907271210,15.19637499,1583.8,1583.5,9.38098]
[1673907271444,15.19637499,1583.8,1583.5,16.26615751]
[1673907271657,15.09637499,1583.8,1583.5,16.26615751]
[1673907271819,14.69637499,1583.8,1583.5,16.26615751]
[1673907272038,1.4696375,1583.7,1583.5,16.26615751]
[1673907272289,0.4739,1583.6,1583.5,0.066]
[1673907272513,1.9079,1583.6,1583.3,0.066]
[1673907272681,11.77122277,1583.6,1583.3,6.31585]
[1673907272892,11.83722277,1583.6,1583.3,12.69777]
[1673907273123,12.50774904,1583.6,1583.3,12.69777]
[1673907273335,13.45297181,1583.6,1583.3,12.69777]
[1673907273721,12.48164904,1583.6,1583.3,12.69777]
[1673907273931,13.42687181,1583.6,1583.3,0.066]
[1673907274248,13.42687181,1583.6,1583.2,0.066]
[1673907274249,20.67561181,1583.6,1583.2,0.066]
[1673907274518,2.59766407,1583.5,1583.2,6.31631]
[1673907274672,0.474,1583.4,1583.2,6.38231]
[1673907275409,0.474,1583.4,1583.3,2.0]
[1673907275826,0.474,1583.5,1583.3,2.0]
[1673907276156,14.33437918,1583.6,1583.3,2.0]
[1673907276363,1.908,1583.5,1583.3,2.0]
[1673907277119,1.882,1583.5,1583.3,2.0]
[1673907277506,1.382,1583.5,1583.3,2.0]
[1673907277715,3.32423792,1583.5,1583.3,2.0]
[1673907278136,1.896,1583.5,1583.3,2.0]
[1673907278625,1.673,1583.5,1583.3,2.0]
[1673907280568,1.199,1583.5,1583.3,2.0]
[1673907282246,1.199,1583.5,1583.3,14.6318]
[1673907282515,9.866,1583.6,1583.3,21.01372]
[1673907282826,9.866,1583.6,1583.4,11.416722]
[1673907282995,9.866,1583.6,1583.4,17.798242]
[1673907283739,0.066,1583.6,1583.4,17.798242]
[1673907283947,11.0283,1583.8,1583.5,2.0]
[1673907284305,11.0943,1583.8,1583.6,6.31472]
[1673907284614,11.0943,1583.8,1583.6,6.38072]
[1673907284997,1.266,1583.8,1583.6,6.38072]
[1673907285211,1.2,1583.8,1583.6,6.38072]
[1673907285476,2.14439714,1583.8,1583.6,6.38072]
[1673907285966,1.2,1583.8,1583.6,6.38072]
[1673907286297,1.2,1583.8,1583.7,2.0]
[1673907286508,0.22989974,1583.9,1583.8,1.19999999]
[1673907286664,0.16389974,1583.9,1583.8,17.30173999]
[1673907286875,0.16389974,1583.9,1583.8,20.23594599]
[1673907288587,0.00089974,1583.9,1583.8,22.23594599]
[1673907289506,0.00089974,1583.9,1583.8,28.07596599]
[1673907290191,0.00089974,1583.9,1583.8,28.54986599]
[1673907290348,0.00089974,1583.9,1583.8,28.07596599]
[1673907292725,0.00089974,1583.9,1583.8,28.54986599]
[1673907292864,0.00089974,1583.9,1583.8,28.07596599]
[1673907293443,0.00089974,1583.9,1583.8,25.20775999]
[1673907293631,0.00089974,1583.9,1583.8,23.20775999]
[1673907296334,0.07486454,1584.0,1583.8,23.20775999]
[1673907296755,0.07486454,1584.0,1583.8,23.68165999]
[1673907302269,0.07486454,1584.0,1583.8,1.26599999]
[1673907302424,2.37139714,1583.9,1583.8,1.19999999]
[1673907302635,8.68491714,1583.9,1583.8,1.19999999]
[1673907302845,10.16954728,1583.9,1583.8,1.19999999]
[1673907303372,18.65529421,1583.9,1583.8,1.19999999]
[1673907303593,21.788746,1583.9,1583.8,1.19999999]
[1673907305402,28.102266,1583.9,1583.8,1.19999999]
[1673907306457,29.99909189,1583.9,1583.8,1.19999999]
[1673907307251,28.102266,1583.9,1583.8,1.19999999]
[1673907307522,29.99909189,1583.9,1583.8,1.19999999]
[1673907308360,15.00025301,1583.9,1583.8,1.19999999]
[1673907308688,15.475226,1583.9,1583.8,1.19999999]
[1673907309843,16.4188678,1583.9,1583.8,1.19999999]
[1673907310218,5.57009359,1583.9,1583.8,1.19999999]
[1673907311535,4.62645179,1583.9,1583.8,1.19999999]
[1673907311843,4.56045179,1583.9,1583.8,1.19999999]
[1673907312216,1.427,1583.9,1583.8,1.19999999]
[1673907312420,15.52730634,1584.0,1583.8,13.82783999]
[1673907312631,15.52730634,1584.0,1583.8,13.89383999]
[1673907312632,14.58366454,1584.0,1583.8,13.89383999]
[1673907312848,15.52730634,1584.0,1583.8,14.36773999]
[1673907313086,15.52730634,1584.0,1583.9,7.702904]
[1673907313087,13.15066454,1584.0,1583.9,7.702904]
[1673907313273,13.15066454,1584.0,1583.9,7.768904]
[1673907313700,13.15066454,1584.0,1583.9,14.082424]
[1673907313701,0.14086454,1584.0,1583.9,14.082424]
[1673907313937,0.07486454,1584.0,1583.9,14.082424]
[1673907314576,0.07486454,1584.0,1583.9,23.395944]
[1673907315370,4.54e-06,1584.0,1583.9,23.395944]
[1673907315585,0.1739648,1584.1,1583.9,23.869744]
[1673907315817,6.48e-05,1584.1,1584.0,24.8001644]
[1673907316026,6.48e-05,1584.1,1584.0,24.8661644]
[1673907318332,6.48e-05,1584.1,1584.0,24.3923644]
[1673907322448,6.48e-05,1584.1,1584.0,22.00539]
[1673907324738,6.48e-05,1584.1,1584.0,3.066]
[1673907325092,6.48e-05,1584.1,1584.0,3.0]
[1673907331165,6.48e-05,1584.1,1583.9,3.066]
[1673907331369,6.48e-05,1584.1,1583.9,3.0]
[1673907331627,1.45959546,1584.1,1583.9,3.0]
[1673907333158,1.45959546,1584.1,1583.9,9.31335]
[1673907333413,1.45959546,1584.1,1583.9,15.69287]
[1673907334372,1.45959546,1584.1,1583.9,22.00639]
[1673907336734,0.51952631,1584.1,1584.0,0.4738]
[1673907336938,0.51952631,1584.1,1584.0,6.78693]
[1673907337153,0.51952631,1584.1,1584.0,9.37913]
[1673907337403,13.6516,1584.2,1584.0,22.00539]
[1673907337645,13.6516,1584.2,1584.1,0.51952631]
[1673907337786,13.6516,1584.2,1584.1,19.45771631]
[1673907337996,13.6516,1584.2,1584.1,19.52371631]
[1673907338478,0.066,1584.2,1584.1,19.52371631]
[1673907338625,1.2460725,1584.3,1584.1,19.52371631]
[1673907339989,1.2460725,1584.3,1584.1,22.88120094]
[1673907340274,7.25e-05,1584.3,1584.1,22.88120094]
[1673907341373,7.25e-05,1584.3,1584.2,3.11662407]
[1673907341582,7.25e-05,1584.3,1584.2,19.44498407]
[1673907341779,7.25e-05,1584.3,1584.2,19.51098407]
[1673907341985,7.25e-05,1584.3,1584.2,19.7183255]
[1673907342464,7.25e-05,1584.3,1584.2,19.2446255]
[1673907342845,7.25e-05,1584.3,1584.2,19.65220347]
[1673907343075,7.25e-05,1584.3,1584.2,22.76882754]
[1673907343289,3.31e-05,1584.4,1584.2,22.99882754]
[1673907343499,0.1902313,1584.5,1584.3,8.64650682]
[1673907343672,0.1902313,1584.5,1584.4,28.36274407]
[1673907343885,0.1902313,1584.5,1584.4,31.65874407]
[1673907344230,0.1902313,1584.6,1584.4,31.65874407]
[1673907344464,0.1902313,1584.6,1584.5,18.96888407]
[1673907344606,0.1902313,1584.6,1584.5,19.80820741]
[1673907345240,0.1902313,1584.6,1584.5,22.92483148]
[1673907345464,0.1902313,1584.6,1584.5,23.15483148]
[1673907345694,0.1902313,1584.6,1584.5,29.46596148]
[1673907346350,0.1902313,1584.6,1584.5,26.11933741]
[1673907346507,0.1902313,1584.6,1584.5,29.23596148]
[1673907346717,0.1902313,1584.7,1584.5,29.46596148]
[1673907346927,0.1902313,1584.7,1584.6,25.22544022]
[1673907347158,0.1902313,1584.7,1584.6,28.29144022]
[1673907347357,0.20211416,1584.8,1584.6,28.29144022]
[1673907347574,4.16e-06,1584.8,1584.7,26.47364407]
[1673907347801,0.20513205,1585.1,1584.7,26.76964407]
[1673907347992,0.20513205,1585.1,1584.9,18.92862]
[1673907348239,1.14877385,1585.1,1585.0,21.92742]
[1673907348456,1.14877385,1585.1,1585.0,25.34004407]
[1673907348457,0.20513205,1585.1,1585.0,25.34004407]
[1673907349295,0.2137686,1585.3,1585.0,25.34004407]
[1673907349508,0.2137686,1585.3,1585.1,3.34662407]
[1673907349672,0.2137686,1585.3,1585.2,31.68468648]
[1673907349882,0.2137686,1585.3,1585.2,31.98068648]
[1673907350605,0.066,1585.6,1585.2,31.98068648]
[1673907350819,0.9436418,1585.7,1585.3,3.34662407]
[1673907351086,2.36227194,1585.7,1585.4,18.92241]
[1673907351248,2.3766418,1585.7,1585.5,3.11662407]
[1673907351471,5.88356373,1585.8,1585.4,18.98841]
[1673907351472,3.50037964,1585.8,1585.6,18.92028]
[1673907351695,2.0157495,1585.8,1585.6,6.37276]
[1673907351899,0.2277686,1585.9,1585.7,6.98390007]
[1673907352259,0.066,1586.5,1585.8,37.51242407]
[1673907352573,0.4731,1586.5,1586.0,18.91455]
[1673907352785,0.4731,1586.5,1586.0,12.6757]
[1673907352936,0.4731,1586.5,1585.8,6.12196]
[1673907353146,0.4731,1586.5,1585.9,6.30554]
[1673907353147,5.66709624,1586.4,1585.9,6.30554]
[1673907353482,4.70922658,1586.3,1585.9,0.066]
[1673907353697,4.23612658,1586.2,1585.8,0.066]
[1673907353911,1.429,1585.9,1585.4,12.68048]
[1673907354214,0.4733,1585.8,1585.4,0.066]
[1673907354410,0.66353,1585.8,1585.4,6.30752]
[1673907354626,0.66353,1585.8,1585.4,6.37352]
[1673907355147,0.19023,1585.8,1585.4,14.37352]
[1673907355474,0.19023,1585.8,1585.4,20.68107]
[1673907355699,12.85603,1585.8,1585.4,14.37352]
[1673907355903,1.285603,1585.7,1585.4,14.37352]
[1673907356117,1.758903,1585.7,1585.4,8.066]
[1673907357626,1.758903,1585.7,1585.4,14.37343]
[1673907357936,1.758903,1585.7,1585.4,20.68098]
[1673907358781,1.285603,1585.7,1585.4,20.68098]
[1673907359298,13.2051,1585.8,1585.4,20.68098]
[1673907359513,12.7318,1585.8,1585.4,20.68098]
[1673907361500,0.4733,1585.7,1585.4,20.68098]
[1673907362767,12.7318,1585.8,1585.4,20.68098]
[1673907364939,12.7318,1585.8,1585.4,26.98853]
[1673907365144,1.27318,1585.7,1585.4,26.98853]
[1673907365774,12.7318,1585.8,1585.4,26.98853]
[1673907368825,12.7318,1585.8,1585.4,31.53815407]
[1673907369096,12.7318,1585.8,1585.6,25.22704]
[1673907369304,12.7318,1585.8,1585.6,25.29304]
[1673907371572,12.7318,1585.8,1585.6,18.98628]
[1673907371781,0.066,1585.8,1585.6,6.37276]
[1673907371993,22.9739,1586.1,1585.6,18.98628]
[1673907372566,23.4471,1586.1,1585.6,18.98628]
[1673907376158,23.4471,1586.1,1585.6,12.67952]
[1673907376159,3.11662407,1586.0,1585.6,12.67952]
[1673907376463,2.34471,1586.0,1585.6,18.98628]
[1673907376872,2.34471,1586.0,1585.6,18.98389305]
[1673907378719,2.81791,1586.0,1585.6,18.98389305]
[1673907379095,2.34471,1586.0,1585.6,18.98389305]
[1673907379463,0.234471,1585.9,1585.6,18.98389305]
[1673907381405,10.12986507,1585.9,1585.6,0.066]
[1673907381556,11.62386507,1585.9,1585.5,6.37314]
[1673907381783,15.829337,1585.9,1585.5,6.37314]
[1673907382306,15.82726482,1585.9,1585.5,6.37314]
[1673907382534,1.58272648,1585.8,1585.5,6.37314]
[1673907383182,13.99862648,1585.8,1585.5,6.37314]
[1673907383378,14.06462648,1585.8,1585.5,6.37314]
[1673907386719,16.41436976,1585.8,1585.5,6.37314]
[1673907386932,0.93989731,1585.7,1585.5,6.37314]
[1673907387242,2.67532402,1585.7,1585.5,6.37314]
[1673907390323,1.73542671,1585.7,1585.5,6.37314]
[1673907390540,2.67532402,1585.7,1585.5,6.37314]
[1673907391403,2.67532402,1585.7,1585.5,18.98744]
[1673907391561,0.93989731,1585.7,1585.5,18.98744]
[1673907392648,1.40984597,1585.7,1585.5,18.98744]
[1673907392856,0.94532393,1585.6,1585.5,18.98744]
[1673907395088,2.84201822,1586.0,1585.5,22.75040325]
[1673907395293,2.36291223,1585.9,1585.8,2.37206312]
[1673907395506,1.890646,1586.0,1585.9,0.23]
[1673907395507,0.066,1586.0,1585.9,0.23]
[1673907395671,2.36291224,1586.3,1585.9,15.95774407]
[1673907395878,15.44341224,1586.4,1585.9,19.02184911]
[1673907396094,15.50941224,1586.4,1585.9,20.45074082]
[1673907396633,15.50941224,1586.4,1586.1,6.30469]
[1673907396634,2.42891224,1586.4,1586.1,6.30469]
[1673907396898,0.2797686,1586.6,1586.3,1.43]
[1673907397073,0.2157686,1586.6,1586.4,18.91074]
[1673907397287,0.066,1586.7,1586.5,3.11662407]
[1673907397595,0.23446395,1586.8,1586.5,6.30298]
[1673907397755,2.59737619,1586.8,1586.5,7.01531918]
[1673907397972,2.59737619,1586.8,1586.6,0.64633918]
[1673907398425,3.40931228,1586.8,1586.6,0.64633918]
[1673907398756,3.11662407,1586.7,1586.4,0.066]
[1673907398971,3.11662407,1586.7,1586.1,6.37063]
[1673907398972,3.11662407,1586.6,1586.1,6.37063]
[1673907399138,25.47185074,1586.7,1586.1,6.37063]
[1673907399139,7.71602771,1586.5,1586.1,0.066]
[1673907399357,0.77160277,1586.4,1586.0,0.066]
[1673907399558,0.4731,1586.4,1586.0,6.30516]
[1673907399793,0.4731,1586.4,1586.0,7.01749918]
[1673907399978,0.4731,1586.5,1586.0,7.01749918]
[1673907400341,12.85761224,1586.6,1586.1,0.64633918]
[1673907400342,10.9677,1586.6,1586.1,0.64633918]
[1673907400504,10.9677,1586.6,1586.2,6.30417]
[1673907400730,16.02479346,1586.6,1586.2,6.37017]
[1673907400912,13.66188122,1586.6,1586.2,7.01650918]
[1673907401120,13.66188122,1586.6,1586.2,0.71233918]
[1673907401331,13.66188122,1586.6,1586.2,0.64633918]
[1673907402336,13.66188122,1586.6,1586.2,6.30435]
[1673907402645,1.36618812,1586.5,1586.2,6.37035]
[1673907403804,1.36618812,1586.5,1586.2,0.066]
[1673907403973,1.36618812,1586.5,1586.1,7.01686918]
[1673907404188,1.83928812,1586.5,1586.1,7.01686918]
[1673907404518,3.25095594,1586.5,1586.1,7.01686918]
[1673907404742,0.32509559,1586.4,1586.1,7.01686918]
[1673907405373,13.94399559,1586.4,1586.1,7.01686918]
[1673907405723,17.12661966,1586.4,1586.1,0.71233918]
[1673907405885,17.12661966,1586.4,1586.0,6.37106]
[1673907406273,23.43019966,1586.4,1586.0,6.37106]
[1673907406526,2.34301997,1586.3,1586.0,6.37106]
[1673907409684,0.002,1586.3,1586.0,6.36906]
[1673907409901,23.90329966,1586.4,1586.0,6.37106]
[1673907410963,17.12661966,1586.4,1586.0,12.67623]
[1673907411113,17.12661966,1586.4,1586.0,18.9814]
[1673907412396,16.80152407,1586.4,1586.0,18.9814]
[1673907413402,17.27462407,1586.4,1586.0,18.9814]
[1673907413968,13.6849,1586.4,1586.1,1.433]
[1673907414194,13.6849,1586.4,1586.2,12.60874]
[1673907414414,13.6849,1586.4,1586.2,12.67474]
[1673907416422,15.33117559,1586.4,1586.2,12.67474]
[1673907418314,13.6849,1586.4,1586.2,12.67474]
[1673907418487,13.6849,1586.4,1586.2,6.37037]
[1673907419654,17.27462407,1586.4,1586.2,0.066]
[1673907419986,17.27462407,1586.4,1586.0,20.41082]
[1673907420177,17.27462407,1586.4,1586.0,14.10585]
[1673907420391,20.72879216,1586.4,1586.0,14.10585]
[1673907421439,22.14045998,1586.4,1586.0,14.10585]
[1673907421810,20.72879216,1586.4,1586.0,14.10585]
[1673907421984,17.61216809,1586.4,1586.0,14.10585]
[1673907422189,14.158,1586.4,1586.0,20.41102]
[1673907423388,14.158,1586.4,1586.1,14.04213]
[1673907423540,14.158,1586.4,1586.1,6.37043]
[1673907423750,15.56966782,1586.4,1586.1,6.37043]
[1673907423992,1.55696678,1586.3,1586.1,0.066]
[1673907424214,1.55696678,1586.3,1586.0,6.37088]
[1673907424802,0.4731,1586.2,1586.0,6.37088]
[1673907425478,13.6849,1586.4,1586.1,1.433]
[1673907426330,14.158,1586.4,1586.1,1.433]
[1673907426486,1.4158,1586.3,1586.1,1.433]
[1673907426700,1.4158,1586.3,1586.0,14.10905]
[1673907427402,1.4158,1586.3,1586.0,6.37088]
[1673907427734,1.4158,1586.3,1586.0,0.066]
[1673907427914,0.4731,1586.2,1585.9,1.496]
[1673907428133,0.61468,1586.2,1585.8,8.74379312]
[1673907429980,0.61468,1586.2,1585.8,2.43806312]
[1673907430191,2.02634782,1586.2,1585.8,2.37206312]
[1673907430461,0.20263478,1586.1,1585.8,2.37206312]
[1673907431827,0.20263478,1586.1,1585.8,0.93906312]
[1673907432621,1.6143026,1586.1,1585.8,0.93906312]
[1673907432820,1.1143026,1586.1,1585.8,0.93906312]
[1673907433030,0.11143026,1586.0,1585.8,0.93906312]
[1673907435395,1.99357119,1586.0,1585.8,0.93906312]
[1673907435716,0.11143026,1586.0,1585.8,0.93906312]
[1673907436917,1.99357119,1586.0,1585.8,0.93906312]
[1673907437444,0.11143026,1586.0,1585.8,0.93906312]
[1673907437654,0.11143026,1586.0,1585.8,7.24492312]
[1673907437858,0.11143026,1586.0,1585.8,7.31092312]
[1673907439918,0.11143026,1586.0,1585.8,13.61688312]
[1673907440544,14.70864093,1586.1,1585.8,13.61688312]
[1673907440719,17.825265,1586.1,1585.8,13.61688312]
[1673907441997,1.41655085,1586.0,1585.8,13.61688312]
[1673907442908,14.70864093,1586.1,1585.8,19.92284312]
[1673907442909,16.12519178,1586.1,1585.8,19.92284312]
[1673907443116,14.24305085,1586.1,1585.9,1.99228431]
[1673907443326,12.8265,1586.1,1586.0,18.91551]
[1673907443600,12.8265,1586.1,1586.0,18.98151]
[1673907443954,0.066,1586.1,1586.0,22.50188943]
[1673907444185,1.48255085,1586.4,1586.1,0.066]
[1673907444374,1.41655085,1586.5,1586.1,1.49]
[1673907444583,1.41655085,1586.5,1586.2,12.60874]
[1673907444799,1.41655085,1586.5,1586.2,12.67474]
[1673907445058,1.41655085,1586.5,1586.2,14.721666]
[1673907445928,3.36469178,1586.6,1586.2,16.154666]
[1673907446060,3.29869178,1586.6,1586.3,1.422]
[1673907446478,3.77169178,1586.6,1586.2,7.80037]
[1673907446739,3.29869178,1586.6,1586.3,6.30391]
[1673907447070,3.29869178,1586.6,1586.3,6.36991]
[1673907447948,3.29869178,1586.6,1586.3,14.36991]
[1673907447949,1.41655085,1586.6,1586.3,14.36991]
[1673907449310,3.11662407,1586.5,1586.3,8.066]
[1673907449759,4.53317492,1586.4,1586.3,8.066]
[1673907450982,11.775445,1586.4,1586.3,8.066]
[1673907451137,11.841445,1586.4,1586.3,8.066]
[1673907451346,24.49603196,1586.4,1586.3,8.066]
[1673907451807,22.61389103,1586.4,1586.3,8.066]
[1673907453181,26.73578923,1586.4,1586.3,8.066]
[1673907453391,25.80587699,1586.4,1586.3,0.016]
[1673907453611,32.10945699,1586.4,1585.8,0.066]
[1673907453923,1.4151295,1586.1,1585.7,6.3863791]
[1673907454134,11.30974357,1586.1,1585.7,6.3863791]
[1673907454349,11.37574357,1586.1,1585.7,6.3863791]
[1673907454716,24.29174357,1586.1,1585.7,6.3863791]
[1673907455072,14.8703295,1586.1,1585.8,1.427]
[1673907455283,14.8703295,1586.1,1585.9,6.30556]
[1673907455502,16.54604638,1586.1,1585.9,6.37156]
[1673907456241,16.54604638,1586.1,1585.9,0.066]
[1673907456390,16.54604638,1586.1,1585.8,12.61164]
[1673907456391,16.54604638,1586.1,1585.8,12.67764]
[1673907456816,15.13091688,1586.1,1585.8,12.67764]
[1673907458068,16.54604638,1586.1,1585.8,12.67764]
[1673907458321,1.65460464,1586.0,1585.8,12.67764]
[1673907458655,14.8703295,1586.1,1585.8,12.67764]
[1673907460377,13.4552,1586.1,1585.8,12.67764]
[1673907460591,14.8703295,1586.1,1585.8,12.67764]
[1673907461242,13.4552,1586.1,1585.8,12.67764]
[1673907463130,13.4552,1586.1,1585.8,6.37182]
[1673907463337,1.34552,1586.0,1585.8,6.37182]
[1673907464800,4.46214407,1586.0,1585.8,0.066]
[1673907465057,4.46214407,1586.0,1585.7,6.3863791]
[1673907469940,4.46214407,1586.0,1585.7,0.0803591]
[1673907470155,10.76731407,1586.0,1585.7,0.0143591]
[1673907470366,1.07673141,1585.9,1585.7,0.0143591]
[1673907471625,1.07673141,1585.9,1585.7,6.3207091]
[1673907471854,1.07673141,1585.9,1585.7,6.3867091]
[1673907472900,1.07673141,1585.9,1585.7,6.3367091]
[1673907473110,1.07673141,1585.9,1585.7,0.066]
[1673907473338,0.10767314,1585.8,1585.6,12.67906]
[1673907473575,1.07673141,1585.9,1585.8,0.10767314]
[1673907477499,1.07673141,1585.9,1585.8,6.41363314]
[1673907477690,15.06964407,1586.0,1585.8,6.47963314]
[1673907478344,4.52814407,1586.0,1585.8,0.17367314]
[1673907478552,4.46214407,1586.0,1585.8,0.10767314]
[1673907486519,4.93534407,1586.0,1585.8,0.10767314]
[1673907486944,7.28107397,1585.9,1585.5,9.59994359]
[1673907487105,7.28107397,1585.9,1585.7,0.004]
[1673907487106,8.47474133,1585.8,1585.7,0.004]
[1673907487322,28.10255314,1585.8,1585.4,0.066]
[1673907487551,28.10255314,1585.8,1585.3,30.18824862]
[1673907487552,3.11662407,1585.7,1585.3,27.906404]
[1673907487924,0.4733,1585.6,1585.4,8.8179339]
[1673907488090,1e-08,1585.6,1585.5,1.56523244]
[1673907488286,0.31166241,1585.6,1585.5,1.56523801]
[1673907488493,0.31166241,1585.6,1585.4,7.31866939]
[1673907488854,0.31166241,1585.6,1585.4,0.066]
[1673907489073,3.11662407,1585.5,1585.3,1.031784]
[1673907489232,3.59002407,1585.5,1585.3,0.02051461]
[1673907489611,0.35900241,1585.4,1585.3,2.53111161]
[1673907489757,0.35900241,1585.4,1585.3,1.58584222]
[1673907490174,0.5394,1585.5,1585.3,1.58584222]
[1673907490439,0.4734,1585.5,1585.3,12.63641461]
[1673907490612,2.20009191,1585.6,1585.3,12.70241461]
[1673907490813,0.78496241,1585.6,1585.3,12.70241461]
[1673907492823,3.11662407,1585.5,1585.3,0.08651461]
[1673907493019,3.50678272,1585.5,1585.3,0.02051461]
[1673907493497,0.39015865,1585.5,1585.3,0.02051461]
[1673907493666,0.31166241,1585.6,1585.3,0.02051461]
[1673907493873,3.42828648,1585.6,1585.3,0.02051461]
[1673907494747,0.31166241,1585.6,1585.3,12.63626461]
[1673907494903,0.31166241,1585.6,1585.3,12.70226461]
[1673907496383,0.31166241,1585.6,1585.3,12.20226461]
[1673907497038,3.11662407,1585.5,1585.3,5.89431461]
[1673907497242,3.45945272,1585.5,1585.3,5.89431461]
[1673907502729,3.11662407,1585.5,1585.3,5.89431461]
[1673907502919,3.11662407,1585.5,1585.3,0.066]
[1673907503139,3.11662407,1585.5,1585.2,12.70270461]
[1673907503348,3.59002407,1585.5,1585.2,12.70270461]
[1673907504412,7.70213482,1585.5,1585.2,12.70270461]
[1673907504632,0.77021348,1585.4,1585.2,12.70270461]
[1673907505217,13.61172407,1585.5,1585.2,12.70270461]
[1673907505446,17.72395201,1585.5,1585.2,12.70270461]
[1673907506900,13.61172407,1585.5,1585.2,12.70270461]
[1673907507905,13.60901419,1585.5,1585.2,12.70270461]
[1673907508210,17.72173395,1585.5,1585.2,12.70270461]
[1673907508419,1.7721734,1585.4,1585.2,12.70270461]
[1673907529578,1.7721734,1585.4,1585.2,6.39467461]
[1673907529795,13.7317364,1585.4,1585.2,0.08651461]
[1673907530013,32.3374064,1585.4,1585.3,0.30595276]
[1673907530586,30.45056707,1585.4,1585.3,0.30595276]
[1673907530800,36.75813707,1585.4,1585.3,0.30595276]
[1673907531237,39.1183764,1585.4,1585.3,0.30595276]
[1673907531638,40.06179607,1585.4,1585.3,0.30595276]
[1673907532184,38.17495674,1585.4,1585.3,0.30231612]
[1673907532397,3.81749567,1585.3,1585.2,0.02051461]
[1673907532614,36.42355214,1585.3,1585.2,0.02051461]
[1673907532924,36.48955214,1585.3,1585.2,0.02051461]
[1673907533136,42.79750214,1585.3,1585.2,0.02051461]
[1673907534012,43.27090214,1585.3,1585.2,0.02051461]
[1673907534162,43.74348367,1585.3,1585.2,0.02051461]
[1673907534532,50.40548367,1585.3,1585.2,0.02051461]
[1673907534752,1.419,1585.2,1585.0,0.02153866]